Cogmind - Beta 16.1 @@@ ROGUE MODE // 2026.04.05 @ 22:45:55 Player: WetterLettuce Result: Destroyed by S-10 Pest with Light Assault Rifle Performance ------------- Evolutions (0) 0 Regions Visited (2) 400 Robots Destroyed (23) 115 Value Destroyed (626) 626 Prototype IDs (0) 0 Alien Tech Used (0) 0 Bonus (0) 0 TOTAL SCORE: 1141 Bonus ------- None Cogmind --------- Core Integrity 0/250 Matter 80/300 Energy 239/250 System Corruption 0% Temperature Cool (20) Movement Rolling (110) Location -10/Subcaves Parts ------- > --- POWER (1) -------- Ion Engine > --- PROPULSION (2) --- Subdweller Monowheel > --- UTILITY (2) ------ Small Storage Unit > --- WEAPON (2) ------- Subdweller Beam Cannon > --- INVENTORY (8) ---- Subdweller Power Source Subdweller Power Source Piercing Trap Peak State ------------ > --- POWER ------------ Ion Engine > --- PROPULSION ------- Aluminum Leg Wheel > --- UTILITY ---------- Disposable Heat Sink Small Storage Unit > --- WEAPON ----------- Light Assault Rifle Subdweller Shrapnel Launcher > --- INVENTORY -------- Ion Engine Compact Wheel Small Laser Light Assault Rifle [Rating: 9] Favorites ----------- Power Ion Engine Engine Ion Engine Propulsion Aluminum Leg Treads Light Treads Leg Aluminum Leg Wheel Wheel Utility Small Storage Unit Device Disposable Heat Sink Storage Small Storage Unit Protection Light Armor Plating Weapon Light Assault Rifle Energy Gun Small Laser Energy Cannon Subdweller Beam Cannon Ballistic Gun Light Assault Rifle Launcher Subdweller Shrapnel Launcher Build | -11 -10 -10 ------- Run | Yrd Mat Sub Slots Evolved . | . . . Power . | . . . Propulsion . | . . . Utility . | . . . Weapon . | . . . Parts Attached 20 | 9 3 8 Power 3 | 1 . 2 Engine 3 | 1 . 2 Core . | . . . Reactor . | . . . Propulsion 7 | 4 . 3 Treads 2 | 2 . . Leg 2 | 2 . . Wheel 3 | . . 3 Hover . | . . . Flight . | . . . Utility 3 | 1 1 1 Device 1 | . . 1 Storage 1 | 1 . . Processor . | . . . Hackware . | . . . Protection 1 | . 1 . Artifact . | . . . Weapon 7 | 3 2 2 Energy Gun 2 | 1 1 . Energy Cannon 1 | . . 1 Ballistic Gun 3 | 2 1 . Ballistic Cannon . | . . . Launcher 1 | . . 1 Special Weapon . | . . . Impact Weapon . | . . . Slashing Weapon . | . . . Piercing Weapon . | . . . Special Melee Weapon . | . . . Unidentified Prototypes . | . . . Parts Lost 14 | . 5 9 Power 2 | . 1 1 Propulsion 4 | . 1 3 Utility 2 | . 1 1 Weapon 6 | . 2 4 Highest Loss Streak 5 | . 5 4 To Critical Strikes . | . . . Average Backups 3 | 2 4 2 Power 1 | . 1 1 Propulsion 1 | 1 2 . Utility . | . . . Weapon . | . 1 . Tool/Special . | . . . Unused Backups 2 | . . 2 Power 2 | . . 2 Propulsion . | . . . Utility . | . . . Weapon . | . . . Tool/Special . | . . . Average Slot Usage (%) 79 | . 73 82 Engine 11 | . 6 13 Leg 12 | . 21 8 Wheel 11 | . . 16 Storage 14 | . 14 14 Energy Gun 11 | . 14 10 Ballistic Gun 13 | . 14 13 Launcher 2 | . . 3 Peak Build Rating 9 | 6 7 9 Average Rating 5 | 4 5 6 On Entrance 3 | . 6 4 Avg Prop Armor Cover (%) 9 | . . 9 Naked Turns . | . . . Heaviest Build 20 | 14 16 20 Greatest Support 40 | 40 20 26 Greatest Overweight (x) 3 | 2 . 3 Average Overweight (x) . | . . . Largest Inventory Capacity 8 | 8 8 8 Average Capacity 7 | 7 8 8 Most Carried 6 | 4 6 4 Average Carried 3 | 2 4 2 Final Capacity 8 | 8 8 8 Final Carried 5 | 4 5 3 Class Distribution -------------------- 100% | Mutant Dominant Class ---------------- Mutant | -10/Materials Mutant | -10/Subcaves Resources | -11 -10 -10 ----------- Run | Yrd Mat Sub Matter Collected 578 | 263 137 178 Remotely . | . . . Salvage Created 508 | . 328 180 Parts 34 | . 21 13 Haulers Intercepted . | . . . Recyclers Shooed . | . . . Parts Field Recycled . | . . . Retrieved Matter . | . . . Parts Self-Destructed 4 | . . 4 Prevented . | . . . Parts Restored . | . . . Kills | -11 -10 -10 ------- Run | Yrd Mat Sub Combat Hostiles Destroyed 21 | . 9 12 Guns 13 | . 9 4 Cannons 1 | . . 1 AOE 7 | . . 7 Classes Destroyed 5 | . 4 1 Operator 1 | . 1 . Watcher 1 | . 1 . Swarmer 7 | . 3 4 Grunt 6 | . 6 . Subdweller 8 | . . 8 Best Kill Streak 4 | . 4 4 Combat Bots Only 4 | . 4 4 Max Kills in Single Turn 2 | . 1 2 Gunslinging 1 | . . 1 Exploded 2 | . . 2 Melee . | . . . Uniques/NPCs Destroyed . | . . . Combat | -11 -10 -10 -------- Run | Yrd Mat Sub Hostile Shots Fired 136 | . 78 58 Missed 38 | . 18 20 Hits 98 | . 60 38 Projectile 98 | . 60 38 Damage Taken 1219 | . 583 636 Core 256 | . 40 216 Absorbed by Shields . | . . . Core Remaining (%) 100 | 100 . . Volleys Fired 64 | . 38 26 Largest 2 | . 2 2 Hottest 100 | . 60 100 Shots Fired 116 | . 74 42 Gun 99 | . 74 25 Cannon 1 | . . 1 Launcher 16 | . . 16 Special . | . . . Kinetic 76 | . 37 39 Thermal 23 | . 20 3 Explosive . | . . . Electromagnetic 17 | . 17 . Robot Hit Streak 11 | . 7 11 Robot Miss Streak 7 | . 7 3 Penetration Max . | . . . Secondary Targets 3 | . 2 1 Max Gunslinging Chain 1 | . 1 1 Shots Hit Robots 69 | . 43 26 Core Hits 40 | . 19 21 Critical Kills . | . . . Critical Parts Destroyed . | . . . Critical Strikes 1 | . 1 . Corrupt 1 | . 1 . Melee Attacks . | . . . Impact . | . . . Slashing . | . . . Piercing . | . . . Sneak Attacks . | . . . Combat Hostiles . | . . . Follow-up Attacks . | . . . Damage Inflicted 2102 | . 631 1471 Guns 717 | . 584 133 Cannons 28 | . . 28 Explosions 1357 | . 47 1310 Melee . | . . . Ramming . | . . . Kinetic 1741 | . 310 1431 Thermal 198 | . 158 40 Explosive . | . . . Electromagnetic 163 | . 163 . Impact . | . . . Slashing . | . . . Piercing . | . . . Highest Corruption . | . . . Average Corruption . | . . . Corruption Purged . | . . . Corruption Blocked . | . . . Overload Shots . | . . . Overflow Damage . | . . . Projectiles . | . . . Explosions . | . . . Melee . | . . . Knockbacks . | . . . Impact . | . . . Kinetic . | . . . Secondary . | . . . Self-Inflicted Damage 10 | . . 10 Shots 1 | . . 1 Rammed . | . . . Targets Rammed . | . . . Kicked . | . . . Crushed . | . . . Highest Temperature 127 | . 127 20 Average Temperature 45 | . 46 15 Received Heat Transfer 318 | . 204 114 Siege Activations . | . . . Martial Activations . | . . . Shielding Activations . | . . . Robots Disrupted . | . . . Combat Hostiles . | . . . Robots Corrupted . | . . . Combat Hostiles . | . . . Parts Fried . | . . . Impact Corruptions . | . . . Robots Melted . | . . . Combat Hostiles . | . . . Parts Melted 1 | . 1 . Heat Transferred 412 | . 350 62 Parts Sabotaged . | . . . Parts Stolen . | . . . Parts Stripped . | . . . Power Chain Reactions 1 | . 1 . Alert | -11 -10 -10 ------- Run | Yrd Mat Sub Maximum Alert Level . | . . . Low Security (%) 100 | 100 100 . Level 1 . | . . . Level 2 . | . . . Level 3 . | . . . Level 4 . | . . . Level 5 . | . . . High Security . | . . . Max Security . | . . . Peak Influence 101 | . 101 . Initial . | . . . Average 40 | . 52 . Influence Increases 355 | . 235 120 Destroy 0b10 Robot/C 260 | . 180 80 Destroy 0b10 Robot/NC 10 | . 10 . Destroy Leader 42 | . 32 10 Successful Hack 7 | . 7 . Destroy Structure 6 | . 6 . Lose Combat Pursuer 30 | . . 30 Influence Decreases 325 | . 207 118 Entered New Map 14 | . . 14 Time Decay 241 | . 157 84 Lost Part 70 | . 50 20 Squads Dispatched 2 | . 2 . Investigation . | . . . Extermination . | . . . Reinforcement 2 | . 2 . Assault . | . . . Garrison . | . . . Intercept . | . . . Searches Triggered . | . . . Construction Impeded . | . . . Haulers Reinforced . | . . . Active Scanning Responses . | . . . Cargo Convoy Interrupts . | . . . Stealth | -11 -10 -10 --------- Run | Yrd Mat Sub Distress Signals 3 | . 3 . Communications Jammed . | . . . Distress Signals . | . . . Times Spotted 29 | . 13 16 Peak Tracking Total 6 | . 6 6 Tactical Retreats 1 | . . 1 Traps | -11 -10 -10 ------- Run | Yrd Mat Sub Traps Triggered 2 | . . 2 Indirectly . | . . . Trap Hack Attempts . | . . . Triggered . | . . . Disarmed . | . . . Reprogrammed . | . . . Reused . | . . . Traps Extracted . | . . . Installed . | . . . Triggered . | . . . Most Traps Carried 1 | . . 1 Machines | -11 -10 -10 ---------- Run | Yrd Mat Sub Machines Disabled . | . . . Max in Single Turn . | . . . Machines Repaired . | . . . Machines Dismantled . | . . . Machines Sabotaged . | . . . Overloaded Fab Kills . | . . . Hacking | -11 -10 -10 --------- Run | Yrd Mat Sub Machines Accessed 3 | . 2 1 Terminals 2 | . 2 . Fabricators . | . . . Repair Stations . | . . . Recycling Units . | . . . Scanalyzers . | . . . Garrison Access . | . . . Total Hacks 9 | . 7 2 Successful 5 | . 3 2 Failed 4 | . 4 . Catastrophic 1 | . 1 . Database Lockouts . | . . . Manual 3 | . 3 . Terminals 7 | . 7 . Fabricators . | . . . Repair Stations . | . . . Recycling Units . | . . . Scanalyzers . | . . . Garrison Access . | . . . Terminal Hacks 3 | . 1 2 Record 2 | . . 2 Branch Access Points 1 | . 1 . Fabricator Hacks . | . . . Repair Station Hacks . | . . . Recycling Unit Hacks . | . . . Scanalyzer . | . . . Garrison Access Hacks . | . . . Unauthorized Hacks 2 | . 2 . Terminals 2 | . 2 . Botnet 2 | . 2 . Fabricators . | . . . Repair Stations . | . . . Recycling Units . | . . . Scanalyzers . | . . . Garrison Access . | . . . Data Cores Recovered . | . . . Used . | . . . Hacking Detections 2 | . 2 . Full Trace Events . | . . . Feedback Events . | . . . Feedback Blocked . | . . . Robot Schematics Acquired . | . . . Robots Built . | . . . Authchips . | . . . Time . | . . . Total Robot Build Rating . | . . . Part Schematics Acquired . | . . . Parts Built . | . . . Authchips . | . . . Time . | . . . Total Part Build Rating . | . . . Part Studies Acquired . | . . . Parts Repaired . | . . . Time . | . . . Parts Recycled . | . . . Recycled Matter . | . . . Retrieved Matter . | . . . Retrieved Components . | . . . Parts Scanalyzed . | . . . Part Schematics Acquired . | . . . Parts Damaged . | . . . Bothacking | -11 -10 -10 ------------ Run | Yrd Mat Sub Used RIF Installer . | . . . Robots Hacked . | . . . Non-combat . | . . . Combat . | . . . Robot Hacks Applied . | . . . Relay Couplers Released . | . . . Fabnet Peak Effective % . | . . . Robots Rewired . | . . . Allies Hacked . | . . . Hacks Repelled . | . . . Allies | -11 -10 -10 -------- Run | Yrd Mat Sub Total Allies . | . . . Largest Group . | . . . Highest-Rated Group . | . . . Highest-Rated Ally . | . . . Total Orders . | . . . Ally Attacks . | . . . Total Damage . | . . . Kills . | . . . Allies Corrupted . | . . . Allies Melted . | . . . Intel | -11 -10 -10 ------- Run | Yrd Mat Sub Active Infowar (turns) . | . . . Robot Analysis Total . | . . . Derelict Logs Recovered 3 | . . 3 Drone Launches . | . . . Drone Recoveries . | . . . Exploration | -11 -10 -10 ------------- Run | Yrd Mat Sub Turns Passed 1317 | 113 369 835 Spaces Moved 956 | 68 110 778 Core 10 | 5 . 5 Treads 13 | 13 . . Legs 160 | 50 110 . Wheels 773 | . . 773 Hover . | . . . Flight . | . . . Fastest Speed 50 | 50 120 90 Average Speed 101 | 124 120 96 Slowest Speed 200 | 160 120 200 Overloaded Moves . | . . . Propulsion Burnouts . | . . . Robots Hopped . | . . . Potential Cave-ins 2 | . . 2 Cave-ins Triggered . | . . . Exploration Rate (%) 29 | 4 28 55 Regions Visited 2 Branch Regions 1 Pre-discovered Areas 1 | . . 1 Known Exits Taken . | . . . Unknown Exits Taken 2 | 1 1 . Scrap Searched . | . . . Spaces Dug 13 | . . 13 Terrain Destroyed 165 | . 6 159 Melee . | . . . Projectile . | . . . AOE 165 | . 6 159 Terrain Rammed . | . . . Walls Destroyed . | . . . Machines Disabled . | . . . Actions | -11 -10 -10 --------- Run | Yrd Mat Sub Total 1184 | 92 273 819 Wait 130 | 10 120 . Move 954 | 67 109 778 Hop . | . . . Pick Up 12 | 4 3 5 Fast Attach 11 | 8 1 2 Attach 9 | . 2 7 Detach . | . . . Swap 2 | 1 . 1 Drop 2 | 2 . . Fire 64 | . 38 26 Melee . | . . . Ram . | . . . Kick . | . . . Crush . | . . . Escape Stasis . | . . . Rewire . | . . . Trap . | . . . Miscellaneous . | . . . Route ------- -11/Scrapyard -10/Materials (discovered 3 exits: [*Mat] / Min / *Sub) -10/Subcaves (discovered 2 exits: [*Mat] / [*Scr]) History --------- Turn | Location | Event 9 | -11/Scrapyard | Discovered new exit (range 16) 114 | -11/Scrapyard | Entered Materials 136 | -10/Materials | Identified exit to Mines 317 | -10/Materials | Build established: Mutant 342 | -10/Materials | Discovered new exit (range 16) 355 | -10/Materials | Lost 5 parts (1p1n1u2w) 470 | -10/Materials | Discovered new exit (range 9) 483 | -10/Materials | Entered Subcaves 484 | -10/Subcaves | Approached by a straggling Scientist 488 | -10/Subcaves | Learned location of 1 exit from Materials 509 | -10/Subcaves | A swath of the cavern ceiling suddenly collapsed 511 | -10/Subcaves | Learned Materials stockpile data 654 | -10/Subcaves | Discovered new exit (range 14) 689 | -10/Subcaves | Visited Clippyterm 692 | -10/Subcaves | Learned location of Deep Caves (-7) 702 | -10/Subcaves | Learned location of 1 exit from Materials 743 | -10/Subcaves | Scientist uncovered a shortcut to Scraptown 971 | -10/Subcaves | Core integrity fell below 50% 1157 | -10/Subcaves | Core integrity fell below 20% 1199 | -10/Subcaves | Lost 4 parts (1p2n1w) 1284 | -10/Subcaves | Shifting Twisted Machinery released Piercing Trap 1318 | -10/Subcaves | Destroyed by S-10 Pest with Light Assault Rifle Last Messages --------------- Wheel destroyed. XT-NSB(R) destroyed. Subatomizers dissect the Sub. Power Source. Ion Engine destroyed. Sub. Shrapnel Launcher destroyed. Com. Wheel destroyed. I5-AFO(R) destroyed. Subatomizers dissect the Sub. Power Source. Acquired Sub. Monowheel. Acquired 26 matter. Acquired Sub. Power Source. Acquired Sub. Beam Cannon. Piercing Trap falls loose from the Twisted Machinery. Acquired 10 matter. Acquired Piercing Trap. Acquired 8 matter. Sml. Laser destroyed. S-10 Pest destroyed. Lgt. Assault Rifle destroyed. Map ----- +----------------------------------------------------+ | ?????????????????????????????????????????????## | | ??????????????????????????????????????????????#### | | ?????????????????????????????????????????????????? | | ?????????????????????????????????????????????????? | | ?????????????????????????????????????????????????? | | ?????????????????????????????????????????????????? | | ?????????????????????????????????????????????????? | | ?????????????????????????????????????????????????? | | ???????????????????????????????????????????#####?? | | ??????????????????????????????????????????## ### | | ?????????????????????????????????????????## # | | ?????????????????????????????????????????# | | ?????????????????????????????????????????# | | ?????????????????????????????????????????# # # | | ????????????????????""??????????????????## #### | | ??????????????????" " ??????????##?????# ##?# | | ??????????????????? ?????????## ###### #?## | | ??????????????????? ?????????# # #??# | | ???????????????????? ?????????## ##?# | | ???????????????????? ??????????## """" | | ????????????????????# ??######### ## ### | | ????????????????????# ??# ## # #### ##?# | | ????????????????????# ??# ##""#??# ###?#? | | ???????????????# ???# ??# ###""#??#" ?#"# | | ???????????????# ### ### "#?# ""??#" ? "" | | ?????????????### #@ ""#?#"""#??"""? " | | ?????????????# s[ ### "##?#" ##??? #?# | | ???????????# s% #?####??#" ??????## | | ??????????" ##s* ##???????? ?????## | | ??????????" ??## ##??????????#?????## | | ??????????? ????###????????????????## | | ????????????" ## ????????????????????????# | | ???????????? ???##????????????????????????## | | ??????????????????????????????????????????# % | | ??????????????????????????????????????????## | | ???????????????????????????????????????????# | | ??????????????????????????????????????????## | | ??????????????????????????????????????????# | | ??????????????????????????????????????????# | | ??????????????????????????????????????????# | | ?????????????????????????????????????????## # | | ?????????????????????????????????????????# # | | ?????????????????????????????????????#?###" # | | ?????????????????????????????????????# #"" # | | ?????????????????????????????????????# # | | ?????????????????????????????????????# ## | | ?????????????????????????????????????# #" ##? | | ?????????????????????????????????????##?## #?? | | ?????????????????????????????????????????# ##? | | ?????????????????????????????????????????## ## | +----------------------------------------------------+ Best States ------------- Heat Dissipation 25 Coolant Potential 50 Energy Generation 10 Energy Capacity 250 Matter Stores 300 Matter Capacity 300 Sight Range 16 Terrain Scan Density 10 Armor Coverage 150 Evasion (%) 55 Recoil Reduction 2 Item Schematics ----------------- None Robot Schematics ------------------ None Fabricated ------------ Nothing Repaired ---------- Nothing Studied --------- None Alien Tech Used ----------------- None Achievements -------------- None Challenges ------------ None Game ------ Seed CombatWeaponsClaymores Manual? 0 Play Time 00:12:01 Cumulative 110.1 hours Start 2026.04.05 @ 22:37:04 End 2026.04.05 @ 22:45:55 Sessions 1 Manual Loads 0 Difficulty Rogue Special Mode None Game No. 130 Rogue 130 Adventurer 0 Explorer 0 Win Type - Total 1 Types 1/0/0/0/0/0/0/0/0/0 Lore% 74 Gallery% 55 Achievement% 40 Wizard Run 0 Options --------- Layout 1 ASCII 0 Keyboard 0 Movement Mouse Keybinds 0 Fullscreen 2 Font 24/Smallcaps Map View 50x35 Zoom Use 0% Tactical HUD 0 Map Filters NONE Filters NONE Steam 1 RUN: a920af69-e1aa-4ef9-9393-89e8f08e747c